fUSD/lending_fUSD_20250214
["ID","MTS","AMOUNT","RATE_DAILY","PERIOD"]
[353063120,1739537459853,-500.0,0.00013863,2]
[353063121,1739537459864,-500.0,0.00013863,2]
[353063122,1739537459874,-505.12384906,0.00013863,2]
[353063123,1739537459884,-500.0,0.00013863,2]
[353063124,1739537459894,-500.0,0.00013863,2]
[353063125,1739537459903,-504.69115918,0.00013863,2]
[353063126,1739537459912,-553.9,0.00013863,2]
[353063127,1739537459921,-500.0,0.00013863,2]
[353063128,1739537459931,-707.22,0.00013863,2]
[353063129,1739537459939,-500.0,0.00013863,2]
[353063130,1739537459949,-500.0,0.00013863,2]
[353063131,1739537459959,-500.0,0.00013863,2]
[353063132,1739537459968,-500.0,0.00013863,2]
[353063133,1739537459977,-500.0,0.00013863,2]
[353063134,1739537459986,-500.0,0.00013863,2]
[353063135,1739537459996,-500.0,0.00013863,2]
[353063136,1739537460005,-500.0,0.00013863,2]
[353063137,1739537460015,-500.0,0.00013863,2]
[353063138,1739537460024,-500.0,0.00013863,2]
[353063139,1739537460033,-500.0,0.00013863,2]
[353063140,1739537460043,-646.58,0.00013863,2]
[353063141,1739537460052,-500.0,0.00013863,2]
[353063142,1739537460062,-500.0,0.00013863,2]
[353063143,1739537460072,-500.0,0.00013863,2]
[353063144,1739537460081,-503.2522476,0.00013863,2]
[353063145,1739537460092,-500.0,0.00013863,2]
[353063146,1739537460102,-500.0,0.00013863,2]
[353063147,1739537460113,-500.0,0.00013863,2]
[353063148,1739537460122,-821.06,0.00013863,2]
[353063149,1739537460132,-500.0,0.00013863,2]
[353063150,1739537460142,-500.0,0.00013863,2]
[353063151,1739537460152,-500.0,0.00013863,2]
[353063152,1739537460162,-500.0,0.00013863,2]
[353063153,1739537460172,-500.0,0.00013863,2]
[353063154,1739537460182,-567.35,0.00013863,2]
[353063155,1739537460192,-500.0,0.00013863,2]
[353063156,1739537460202,-500.0,0.00013863,2]
[353063157,1739537460212,-500.0,0.00013863,2]
[353063158,1739537460222,-582.75,0.00013863,2]
[353063159,1739537460231,-500.0,0.00013863,2]
[353063160,1739537460240,-500.0,0.00013863,2]
[353063161,1739537460250,-569.74,0.00013863,2]
[353063162,1739537460259,-500.0,0.00013863,2]
[353063163,1739537460268,-500.0,0.00013863,2]
[353063164,1739537460278,-500.0,0.00013863,2]
[353063165,1739537460287,-500.0,0.00013863,2]
[353063166,1739537460296,-789.99,0.00013863,2]
[353063167,1739537460305,-500.0,0.00013863,2]
[353063168,1739537460315,-580.52049008,0.00013863,2]
[353063169,1739537460324,-500.0,0.00013863,2]
[353063170,1739537460335,-500.0,0.00013863,2]
[353063171,1739537460345,-723.23,0.00013863,2]
[353063172,1739537460355,-500.0,0.00013863,2]
[353063173,1739537460364,-500.0,0.00013863,2]
[353063174,1739537460373,-152.119774,0.00013863,2]
[353063175,1739537460382,-629.85,0.00013863,2]
[353063176,1739537460391,-1299.37,0.00013863,2]
[353063177,1739537460401,-500.0,0.00013863,2]
[353063178,1739537460410,-1000.0,0.00013863,2]
[353063179,1739537460418,-552.92,0.00013863,2]
[353063180,1739537460428,-500.0,0.00013863,2]
[353063181,1739537460437,-510.91,0.00013863,2]
[353063182,1739537460446,-234.265979,0.00013863,2]
[353063183,1739537460457,-500.0,0.00013863,2]
[353063184,1739537460468,-500.0,0.00013863,2]
[353063185,1739537460478,-500.0,0.00013863,2]
[353063186,1739537460488,-500.0,0.00013863,2]
[353063187,1739537460499,-500.0,0.00013863,2]
[353063188,1739537460510,-923.32,0.00013863,2]
[353063189,1739537460519,-505.67260562,0.00013863,2]
[353063190,1739537460531,-500.0,0.00013863,2]
[353063191,1739537460543,-500.0,0.00013863,2]
[353063192,1739537460554,-1275.79,0.00013863,2]
[353063193,1739537460565,-500.0,0.00013863,2]
[353063194,1739537460578,-500.0,0.00013863,2]
[353063195,1739537460590,-500.0,0.00013863,2]
[353063196,1739537460599,-500.0,0.00013863,2]
[353063197,1739537460610,-500.0,0.00013863,2]
[353063198,1739537460619,-500.0,0.00013863,2]
[353063199,1739537460630,-500.0,0.00013863,2]
[353063200,1739537460641,-1221.44,0.00013863,2]
[353063201,1739537460650,-500.0,0.00013863,2]
[353063202,1739537460660,-500.0,0.00013863,2]
[353063203,1739537460670,-570.62,0.00013863,2]
[353063204,1739537460680,-297.33534483,0.00013863,2]
[353063205,1739537460690,-500.0,0.00013863,2]
[353063206,1739537460783,-500.0,0.00013863,2]
[353063207,1739537460793,-500.0,0.00013863,2]
[353063208,1739537460803,-500.0,0.00013863,2]
[353063209,1739537460812,-500.0,0.00013863,2]
[353063210,1739537460822,-500.0,0.00013863,2]
[353063211,1739537460831,-500.0,0.00013863,2]
[353063212,1739537460841,-165.06157355,0.00013873,2]
[353063213,1739537460851,-1352.75124659,0.000139,2]
[353063214,1739537460861,-1000.0,0.000139,5]
[353063215,1739537460870,-2224.47555721,0.000139,2]
[353063216,1739537460880,-1001.0,0.00013945,2]
[353063217,1739537460889,-500.0,0.00013945,2]
[353063218,1739537460898,-500.0,0.00013945,2]
[353063219,1739537460907,-399.93201796,0.00013945,2]
[353063220,1739537460917,-163.25,0.00013945,2]
[353063221,1739537460926,-222.68,0.00013945,2]
[353063222,1739537460935,-248.45626813,0.00013945,2]
[353063223,1739537460944,-500.0,0.00013945,2]
[353063224,1739537460953,-500.0,0.00013945,2]
[353063225,1739537460962,-500.0,0.00013945,2]
[353063226,1739537460972,-500.0,0.00013945,2]
[353063227,1739537460981,-500.0,0.00013945,2]
[353063228,1739537460990,-500.0,0.00013945,2]
[353063229,1739537460999,-500.0,0.00013945,2]
[353063230,1739537461008,-293.96,0.00013945,2]
[353063231,1739537461017,-500.0,0.00013945,2]
[353063232,1739537461026,-500.0,0.00013945,2]
[353063233,1739537461035,-630.25,0.00013945,2]
[353063234,1739537461044,-470.39788647,0.00013945,2]
[353063235,1739537461053,-500.0,0.00013945,2]
[353063236,1739537461062,-417.53,0.00013945,2]
[353063237,1739537461071,-500.0,0.00013945,2]
[353063238,1739537461080,-500.0,0.00013945,2]
[353063239,1739537461091,-500.0,0.00013945,2]
[353063240,1739537461100,-500.0,0.00013945,2]
[353063241,1739537461109,-256.32,0.00013945,2]
[353063242,1739537461118,-500.0,0.00013945,2]
[353063243,1739537461128,-500.0,0.00013945,2]
[353063244,1739537461137,-500.0,0.00013945,2]
[353063245,1739537461147,-500.0,0.00013945,2]
[353063246,1739537461156,-500.0,0.00013945,2]
[353063247,1739537461165,-500.0,0.00013945,2]
[353063248,1739537461174,-500.0,0.00013945,2]
[353063249,1739537461183,-500.0,0.00013945,2]
[353063250,1739537461192,-500.0,0.00013945,2]
[353063251,1739537461201,-500.0,0.00013945,2]
[353063252,1739537461211,-500.0,0.00013945,2]
[353063253,1739537461220,-500.0,0.00013945,2]
[353063254,1739537461229,-273.42,0.00013945,2]
[353063255,1739537461238,-500.0,0.00013945,2]
[353063256,1739537461247,-500.0,0.00013945,2]
[353063257,1739537461257,-500.0,0.00013945,2]
[353063258,1739537461266,-500.0,0.00013945,2]
[353063259,1739537461275,-500.0,0.00013945,2]
[353063260,1739537461284,-500.0,0.00013945,2]
[353063261,1739537461295,-500.0,0.00013945,2]
[353063262,1739537461304,-410.59417008,0.00013945,2]
[353063263,1739537461314,-331.31,0.00013945,2]
[353063264,1739537461323,-500.0,0.00013945,2]
[353063265,1739537461333,-500.0,0.00013945,2]
[353063266,1739537461343,-184.21,0.00013945,2]
[353063267,1739537461352,-313.32,0.00013945,2]
[353063268,1739537461361,-500.0,0.00013945,2]
[353063269,1739537461374,-500.0,0.00013945,2]
[353063270,1739537461384,-500.0,0.00013945,2]
[353063271,1739537461393,-500.0,0.00013945,2]
[353063272,1739537461403,-500.0,0.00013945,2]
[353063273,1739537461414,-500.0,0.00013945,2]
[353063274,1739537461423,-500.0,0.00013945,2]
[353063275,1739537461436,-500.0,0.00013945,2]
[353063276,1739537461445,-500.0,0.00013945,2]
[353063277,1739537461455,-500.0,0.00013945,2]
[353063278,1739537461464,-500.0,0.00013945,2]
[353063279,1739537461474,-198.91,0.00013945,2]
[353063280,1739537461484,-500.0,0.00013945,2]
[353063281,1739537461493,-500.0,0.00013945,2]
[353063282,1739537461502,-500.0,0.00013945,2]
[353063283,1739537461511,-500.0,0.00013945,2]
[353063284,1739537461521,-500.0,0.00013945,2]
[353063285,1739537461531,-500.0,0.00013945,2]
[353063286,1739537461541,-351.47,0.00013945,2]
[353063287,1739537461550,-486.96,0.00013945,2]
[353063288,1739537461559,-500.0,0.00013945,2]
[353063289,1739537461568,-500.0,0.00013945,2]
[353063290,1739537461578,-500.0,0.00013945,2]
[353063291,1739537461588,-270.74,0.00013945,2]
[353063292,1739537461597,-500.0,0.00013945,2]
[353063293,1739537461607,-500.0,0.00013945,2]
[353063294,1739537461617,-500.0,0.00013945,2]
[353063295,1739537461630,-538.112898,0.00013945,2]
[353063296,1739537461639,-500.0,0.00013945,2]
[353063297,1739537461649,-500.0,0.00013945,2]
[353063298,1739537461658,-500.0,0.00013945,2]
[353063299,1739537461669,-592.49,0.00013945,2]
[353063300,1739537461679,-500.0,0.00013945,2]
[353063301,1739537461689,-500.0,0.00013945,2]
[353063302,1739537461699,-494.28,0.00013945,2]
[353063303,1739537461710,-500.0,0.00013945,2]
[353063304,1739537461720,-500.0,0.00013945,2]
[353063305,1739537461730,-500.0,0.00013945,2]
[353063306,1739537461739,-500.0,0.00013945,2]
[353063307,1739537461749,-500.0,0.00013945,2]
[353063308,1739537461760,-500.0,0.00013945,2]
[353063309,1739537461769,-515.38,0.00013945,2]
[353063310,1739537461778,-500.0,0.00013945,2]
[353063311,1739537461788,-500.0,0.00013945,2]
[353063312,1739537461798,-474.98526408,0.00013945,2]
[353063313,1739537461807,-500.0,0.00013945,2]
[353063314,1739537461817,-500.0,0.00013945,2]
[353063315,1739537461826,-500.0,0.00013945,2]
[353063316,1739537461837,-646.12680046,0.00013945,2]
[353063317,1739537461847,-500.0,0.00013945,2]
[353063318,1739537461856,-500.0,0.00013945,2]
[353063319,1739537461866,-507.52,0.00013945,2]
[353063320,1739537461877,-500.0,0.00013945,2]
[353063321,1739537461887,-500.0,0.00013945,2]
[353063322,1739537461898,-500.0,0.00013945,2]
[353063323,1739537461908,-500.0,0.00013945,2]
[353063324,1739537461919,-500.0,0.00013945,2]
[353063325,1739537461929,-500.0,0.00013945,2]
[353063326,1739537461939,-500.0,0.00013945,2]
[353063327,1739537461949,-577.17274684,0.00013945,2]
[353063328,1739537461959,-500.0,0.00013945,2]
[353063329,1739537461968,-500.0,0.00013945,2]
[353063330,1739537461979,-500.0,0.00013945,2]
[353063331,1739537461996,-500.0,0.00013945,2]
[353063332,1739537462005,-500.0,0.00013945,2]
[353063333,1739537462015,-500.0,0.00013945,2]
[353063334,1739537462024,-507.61686506,0.00013945,2]
[353063335,1739537462034,-586.55,0.00013945,2]
[353063336,1739537462043,-500.0,0.00013945,2]
[353063337,1739537462052,-708.74,0.00013945,2]
[353063338,1739537462062,-500.0,0.00013945,2]
[353063339,1739537462072,-500.0,0.00013945,2]
[353063340,1739537462081,-500.0,0.00013945,2]
[353063341,1739537462092,-358.213118,0.00013945,2]
[353063342,1739537462102,-500.0,0.00013945,2]
[353063343,1739537462113,-500.0,0.00013945,2]
[353063344,1739537462122,-196.05022393,0.00013945,2]
[353063345,1739537462133,-545.76039225,0.00013945,2]
[353063346,1739537462143,-897.17,0.00013945,2]
[353063347,1739537462152,-500.0,0.00013945,2]
[353063348,1739537462162,-500.0,0.00013945,2]
[353063349,1739537462172,-4571.01,0.00013945,2]
[353063350,1739537462182,-500.0,0.00013945,2]
[353063351,1739537462191,-500.0,0.00013945,2]
[353063352,1739537462201,-635.71486148,0.00013945,2]
[353063353,1739537462214,-212.28519911,0.00013945,2]
[353063354,1739537462227,-500.0,0.00013945,2]
[353063355,1739537462249,-500.0,0.00013945,2]
[353063356,1739537462260,-500.0,0.00013945,2]
[353063357,1739537462269,-500.0,0.00013945,2]
[353063358,1739537462279,-500.0,0.00013945,2]
[353063359,1739537462289,-500.0,0.00013945,2]
[353063360,1739537462299,-507.05645344,0.00013945,2]
[353063361,1739537462309,-500.0,0.00013945,2]
[353063362,1739537462319,-500.0,0.00013945,2]
[353063363,1739537462329,-500.0,0.00013945,2]
[353063364,1739537462340,-500.0,0.00013945,2]
[353063365,1739537462350,-500.0,0.00013945,2]
[353063366,1739537462360,-500.0,0.00013945,2]
[353063367,1739537462370,-1099.4,0.00013945,2]
[353063368,1739537462379,-664.01,0.00013945,2]
[353063369,1739537462389,-500.0,0.00013945,2]
[353063370,1739537462486,-500.0,0.00013945,2]
[353063371,1739537462495,-500.0,0.00013945,2]
[353063372,1739537462506,-262.75723626,0.00013945,2]
[353063373,1739537462516,-500.0,0.00013945,2]
[353063374,1739537462525,-248.466983,0.00013945,2]
[353063375,1739537462535,-500.0,0.00013945,2]
[353063376,1739537462545,-635.8,0.00013945,2]
[353063377,1739537462555,-506.3,0.00013945,2]
[353063378,1739537462564,-500.0,0.00013945,2]
[353063379,1739537462574,-500.0,0.00013945,2]
[353063380,1739537462584,-500.0,0.00013945,2]
[353063381,1739537462594,-500.0,0.00013945,2]
[353063382,1739537462604,-500.0,0.00013945,2]
[353063383,1739537462613,-1118.67,0.00013945,2]
[353063384,1739537462623,-500.0,0.00013945,2]
[353063385,1739537462635,-755.67,0.00013945,2]
[353063386,1739537462645,-605.28,0.00013945,2]
[353063387,1739537462654,-843.42,0.00013945,2]
[353063388,1739537462664,-500.0,0.00013945,2]
[353063389,1739537462674,-500.0,0.00013945,2]
[353063390,1739537462685,-500.0,0.00013945,2]
[353063391,1739537462694,-500.0,0.00013945,2]
[353063392,1739537462704,-500.0,0.00013945,2]
[353063393,1739537462714,-500.0,0.00013945,2]
[353063394,1739537462724,-500.0,0.00013945,2]
[353063395,1739537462734,-1135.02,0.00013945,2]
[353063396,1739537462744,-500.0,0.00013945,2]
[353063397,1739537462753,-500.0,0.00013945,2]
[353063398,1739537462763,-500.0,0.00013945,2]
[353063399,1739537462772,-500.0,0.00013945,2]
[353063400,1739537462782,-2092.47,0.00013945,2]
[353063401,1739537462792,-589.80095092,0.00013945,2]
[353063402,1739537462802,-1777.05,0.00013945,2]
[353063403,1739537462812,-500.0,0.00013945,2]
[353063404,1739537462821,-500.0,0.00013945,2]
[353063405,1739537462831,-500.0,0.00013945,2]
[353063406,1739537462841,-500.0,0.00013945,2]
[353063407,1739537462851,-500.0,0.00013945,2]
[353063408,1739537462861,-500.0,0.00013945,2]
[353063409,1739537462870,-500.0,0.00013945,2]
[353063410,1739537462880,-500.0,0.00013945,2]
[353063411,1739537462890,-506.07457261,0.00013945,2]
[353063412,1739537462900,-500.0,0.00013945,2]
[353063413,1739537462909,-500.0,0.00013945,2]
[353063414,1739537462919,-609.01,0.00013945,2]
[353063415,1739537462928,-506.52953855,0.00013945,2]
[353063416,1739537462937,-500.0,0.00013945,2]
[353063417,1739537462947,-622.31,0.00013945,2]
[353063418,1739537462957,-500.0,0.00013945,2]
[353063419,1739537462966,-500.0,0.00013945,2]
[353063420,1739537462977,-500.0,0.00013945,2]
[353063421,1739537462986,-500.0,0.00013945,2]
[353063422,1739537462996,-500.0,0.00013945,2]
[353063423,1739537463006,-593.58,0.00013945,2]
[353063424,1739537463016,-500.0,0.00013945,2]
[353063425,1739537463026,-500.0,0.00013945,2]
[353063426,1739537463036,-1408.38,0.00013945,2]
[353063427,1739537463046,-1194.09,0.00013945,2]
[353063428,1739537463056,-500.0,0.00013945,2]
[353063429,1739537463065,-500.0,0.00013945,2]
[353063430,1739537463075,-500.0,0.00013945,2]
[353063431,1739537463085,-500.0,0.00013945,2]
[353063432,1739537463096,-981.95,0.00013945,2]
[353063433,1739537463106,-500.0,0.00013945,2]
[353063434,1739537463115,-500.0,0.00013945,2]
[353063435,1739537463126,-216.47413952,0.00013945,2]
[353063436,1739537463136,-500.0,0.00013945,2]
[353063437,1739537463146,-500.0,0.00013945,2]
[353063438,1739537463156,-500.0,0.00013945,2]
[353063439,1739537463166,-500.0,0.00013945,2]
[353063440,1739537463176,-500.0,0.00013945,2]
[353063441,1739537463185,-632.23,0.00013945,2]
[353063442,1739537463195,-500.0,0.00013945,2]
[353063443,1739537463205,-500.0,0.00013945,2]
[353063444,1739537463215,-779.75,0.00013945,2]
[353063445,1739537463224,-500.0,0.00013945,2]
[353063446,1739537463234,-500.0,0.00013945,2]
[353063447,1739537463244,-500.0,0.00013945,2]
[353063448,1739537463253,-500.0,0.00013945,2]
[353063449,1739537463263,-500.0,0.00013945,2]
[353063450,1739537463273,-500.0,0.00013945,2]
[353063451,1739537463283,-500.0,0.00013945,2]
[353063452,1739537463293,-500.0,0.00013945,2]
[353063453,1739537463303,-711.5,0.00013945,2]
[353063454,1739537463312,-500.0,0.00013945,2]
[353063455,1739537463322,-608.38,0.00013945,2]
[353063456,1739537463332,-500.0,0.00013945,2]
[353063457,1739537463343,-500.0,0.00013945,2]
[353063458,1739537463353,-521.55,0.00013945,2]
[353063459,1739537463363,-500.0,0.00013945,2]
[353063460,1739537463373,-500.0,0.00013945,2]
[353063461,1739537463383,-500.0,0.00013945,2]
[353063462,1739537463392,-500.0,0.00013945,2]
[353063463,1739537463402,-500.0,0.00013945,2]
[353063464,1739537463412,-553.9,0.00013945,2]
[353063465,1739537463421,-500.0,0.00013945,2]
[353063466,1739537463431,-707.22,0.00013945,2]
[353063467,1739537463441,-531.70765273,0.00013945,2]
[353063468,1739537463450,-527.12094049,0.00013945,2]
[353063469,1739537463460,-500.0,0.00013945,2]
[353063470,1739537463469,-500.0,0.00013945,2]
[353063471,1739537463478,-500.0,0.00013945,2]
[353063472,1739537463487,-500.0,0.00013945,2]
[353063473,1739537463497,-500.0,0.00013945,2]
[353063474,1739537463506,-500.0,0.00013945,2]
[353063475,1739537463516,-506.22833698,0.00013945,2]
[353063476,1739537463525,-646.58,0.00013945,2]
[353063477,1739537463535,-500.0,0.00013945,2]
[353063478,1739537463544,-500.0,0.00013945,2]
[353063479,1739537463553,-500.0,0.00013945,2]
[353063480,1739537463561,-500.0,0.00013945,2]
[353063481,1739537463571,-500.0,0.00013945,2]
[353063482,1739537463580,-821.06,0.00013945,2]
[353063483,1739537463589,-500.0,0.00013945,2]
[353063484,1739537463599,-330.2,0.00013945,2]
[353063485,1739537463609,-500.0,0.00013945,2]
[353063486,1739537463619,-500.0,0.00013945,2]
[353063487,1739537463632,-500.0,0.00013945,2]
[353063488,1739537463642,-567.35,0.00013945,2]
[353063489,1739537463651,-500.0,0.00013945,2]
[353063490,1739537463661,-500.0,0.00013945,2]
[353063491,1739537463673,-500.0,0.00013945,2]
[353063492,1739537463683,-582.75,0.00013945,2]
[353063493,1739537463692,-500.0,0.00013945,2]
[353063494,1739537463702,-500.0,0.00013945,2]
[353063495,1739537463713,-569.74,0.00013945,2]
[353063496,1739537463723,-500.0,0.00013945,2]
[353063497,1739537463733,-500.0,0.00013945,2]
[353063498,1739537463743,-500.0,0.00013945,2]
[353063499,1739537463753,-500.0,0.00013945,2]
[353063500,1739537463763,-789.99,0.00013945,2]
[353063501,1739537463773,-423.81518461,0.00013945,2]
[353063502,1739537463783,-500.0,0.00013945,2]
[353063503,1739537463793,-482.85384877,0.00013945,2]
[353063504,1739537463803,-723.23,0.00013945,2]
[353063505,1739537463812,-500.0,0.00013945,2]
[353063506,1739537463821,-598.38132541,0.00013945,2]
[353063507,1739537463831,-152.119774,0.00013945,2]
[353063508,1739537463842,-629.85,0.00013945,2]
[353063509,1739537463852,-1299.37,0.00013945,2]
[353063510,1739537463862,-1000.0,0.00013945,2]
[353063511,1739537463872,-552.92,0.00013945,2]
[353063512,1739537463883,-500.0,0.00013945,2]
[353063513,1739537463892,-510.91,0.00013945,2]
[353063514,1739537463902,-234.265979,0.00013945,2]
[353063515,1739537463912,-500.0,0.00013945,2]
[353063516,1739537463922,-500.0,0.00013945,2]
[353063517,1739537463932,-500.0,0.00013945,2]
[353063518,1739537463941,-500.0,0.00013945,2]
[353063519,1739537463952,-500.0,0.00013945,2]
[353063520,1739537464048,-500.0,0.00013945,2]
[353063521,1739537464058,-923.32,0.00013945,2]
[353063522,1739537464068,-500.0,0.00013945,2]
[353063523,1739537464078,-500.0,0.00013945,2]
[353063524,1739537464087,-1275.79,0.00013945,2]
[353063525,1739537464099,-500.0,0.00013945,2]
[353063526,1739537464108,-500.0,0.00013945,2]
[353063527,1739537464118,-500.0,0.00013945,2]
[353063528,1739537464128,-500.0,0.00013945,2]
[353063529,1739537464139,-500.0,0.00013945,2]
[353063530,1739537464150,-500.0,0.00013945,2]
[353063531,1739537464161,-485.96,0.00013945,2]
[353063532,1739537464172,-1221.44,0.00013945,2]
[353063533,1739537464182,-500.0,0.00013945,2]
[353063534,1739537464192,-500.0,0.00013945,2]
[353063535,1739537464202,-570.62,0.00013945,2]
[353063536,1739537464212,-500.0,0.00013945,2]
[353063537,1739537464223,-171.79168133,0.00013945,2]
[353063538,1739537464233,-500.0,0.00013945,2]
[353063539,1739537464243,-500.0,0.00013945,2]
[353063540,1739537464253,-500.0,0.00013945,2]
[353063541,1739537464263,-500.0,0.00013945,2]
[353063542,1739537464274,-500.0,0.00013945,2]
[353063543,1739537464284,-318.97,0.00014,2]
[353063544,1739537464294,-2186.15,0.00014026,2]
[353063545,1739537464304,-506.10275739,0.00014027,2]
[353063546,1739537464315,-583.25,0.00014027,2]
[353063547,1739537464325,-564.14,0.00014027,2]
[353063548,1739537464335,-500.0,0.00014027,2]
[353063549,1739537464346,-500.0,0.00014027,2]
[353063550,1739537464355,-500.0,0.00014027,2]
[353063551,1739537464365,-500.0,0.00014027,2]
[353063552,1739537464374,-500.0,0.00014027,2]
[353063553,1739537464384,-500.0,0.00014027,2]
[353063554,1739537464393,-585.04,0.00014027,2]
[353063555,1739537464403,-186.19,0.00014027,2]
[353063556,1739537464412,-500.0,0.00014027,2]
[353063557,1739537464423,-500.0,0.00014027,2]
[353063558,1739537464432,-228.18,0.00014027,2]
[353063559,1739537464441,-461.82,0.00014027,2]
[353063560,1739537464451,-500.0,0.00014027,2]
[353063561,1739537464460,-600.09,0.00014027,2]
[353063562,1739537464470,-500.0,0.00014027,2]
[353063563,1739537464480,-500.0,0.00014027,2]
[353063564,1739537464490,-506.83,0.00014027,2]
[353063565,1739537464499,-500.0,0.00014027,2]
[353063566,1739537464509,-224.21,0.00014027,2]
[353063567,1739537464519,-500.0,0.00014027,2]
[353063568,1739537464528,-500.0,0.00014027,2]
[353063569,1739537464538,-500.0,0.00014027,2]
[353063570,1739537464547,-500.0,0.00014027,2]
[353063571,1739537464556,-500.0,0.00014027,2]
[353063572,1739537464566,-331.12346908,0.00014027,2]
[353063573,1739537464575,-500.0,0.00014027,2]
[353063574,1739537464585,-464.15,0.00014027,2]
[353063575,1739537464597,-500.0,0.00014027,2]
[353063576,1739537464607,-500.0,0.00014027,2]
[353063577,1739537464616,-486.21,0.00014027,2]
[353063578,1739537464629,-366.89821514,0.00014027,2]
[353063579,1739537464639,-500.0,0.00014027,2]
[353063580,1739537464649,-500.0,0.00014027,2]
[353063581,1739537464659,-231.57,0.00014027,2]
[353063582,1739537464669,-500.0,0.00014027,2]
[353063583,1739537464679,-287.17,0.00014027,2]
[353063584,1739537464688,-297.3,0.00014027,2]
[353063585,1739537464697,-500.0,0.00014027,2]
[353063586,1739537464708,-359.31126551,0.00014027,2]
[353063587,1739537464717,-510.05817613,0.00014027,2]
[353063588,1739537464727,-500.0,0.00014027,2]
[353063589,1739537464737,-450.16181234,0.00014027,2]
[353063590,1739537464746,-195.39,0.00014027,2]
[353063591,1739537464756,-461.29,0.00014027,2]
[353063592,1739537464767,-549.79,0.00014027,2]
[353063593,1739537464776,-201.94,0.00014027,2]
[353063594,1739537464786,-188.6,0.00014027,2]
[353063595,1739537464796,-500.0,0.00014027,2]
[353063596,1739537464807,-500.0,0.00014027,2]
[353063597,1739537464817,-398.9,0.00014027,2]
[353063598,1739537464828,-500.0,0.00014027,2]
[353063599,1739537464838,-500.0,0.00014027,2]
[353063600,1739537464848,-500.0,0.00014027,2]
[353063601,1739537464858,-500.0,0.00014027,2]
[353063602,1739537464868,-500.0,0.00014027,2]
[353063603,1739537464877,-500.0,0.00014027,2]
[353063604,1739537464887,-500.0,0.00014027,2]
[353063605,1739537464896,-242.55,0.00014027,2]
[353063606,1739537464905,-500.0,0.00014027,2]
[353063607,1739537464915,-545.59297829,0.00014027,2]
[353063608,1739537464924,-500.0,0.00014027,2]
[353063609,1739537464934,-500.0,0.00014027,2]
[353063610,1739537464944,-302.48795828,0.00014027,2]
[353063611,1739537464954,-500.0,0.00014027,2]
[353063612,1739537464963,-500.0,0.00014027,2]
[353063613,1739537464973,-500.0,0.00014027,2]
[353063614,1739537464982,-500.0,0.00014027,2]
[353063615,1739537464992,-500.0,0.00014027,2]
[353063616,1739537465001,-500.0,0.00014027,2]
[353063617,1739537465011,-492.29516437,0.00014027,2]
[353063618,1739537465021,-500.0,0.00014027,2]
[353063619,1739537465030,-506.25816058,0.00014027,2]